bitfinex-derivatives/quotes_SOLF0:USTF0_20241011
["timestamp","ask_amount","ask_price","bid_price","bid_amount"]
[1728607566540,11.01,139.5,139.49,5.7373]
[1728607566843,11.01,139.51,139.49,2.1503]
[1728607567050,11.01,139.51,139.5,3.5868]
[1728607567238,8.6862,139.53,139.5,2.1503]
[1728607567239,11.01,139.52,139.5,2.1503]
[1728607568253,0.12502,139.55,139.5,13.1603]
[1728607568453,0.12502,139.55,139.5,2.1503]
[1728607568946,17.22,139.54,139.52,3.5862]
[1728607569152,17.22,139.54,139.5,2.1503]
[1728607569946,17.22,139.54,139.51,3.5864]
[1728607570244,17.22,139.54,139.51,5.7367]
[1728607570446,17.22,139.54,139.52,3.5863]
[1728607570951,17.22,139.54,139.52,5.7366]
[1728607571848,0.12502,139.55,139.52,2.1503]
[1728607572049,0.12502,139.55,139.54,3.5858]
[1728607572256,0.12502,139.55,139.52,2.1503]
[1728607572645,0.12502,139.55,139.53,3.586]
[1728607573452,0.12502,139.55,139.53,5.7363]
[1728607575255,0.12502,139.55,139.53,2.1503]
[1728607575557,0.12502,139.55,139.54,3.5858]
[1728607575848,0.12502,139.55,139.54,5.7361]
[1728607577853,0.12502,139.55,139.54,2.1503]
[1728607578056,20.93062,139.55,139.54,2.1503]
[1728607581254,0.12502,139.55,139.54,2.1503]
[1728607582251,3.71062,139.55,139.54,2.1503]
[1728607588458,14.73062,139.55,139.54,2.1503]
[1728607590662,11.14502,139.55,139.54,2.1503]
[1728607590857,0.12502,139.55,139.54,2.1503]
[1728607591060,0.12502,139.55,139.54,5.7361]
[1728607593768,14.73062,139.55,139.54,2.1503]
[1728607603164,11.14502,139.55,139.54,2.1503]
[1728607603357,0.12502,139.55,139.54,5.7361]
[1728607613281,11.14502,139.55,139.54,2.1503]
[1728607615383,14.73062,139.55,139.54,2.1503]
[1728607621390,11.14502,139.55,139.54,2.1503]
[1728607622794,14.73062,139.55,139.54,2.1503]
[1728607627603,3.5868,139.51,139.48,1.3877]
[1728607627896,11.02,139.5,139.48,3.53816]
[1728607628098,11.02,139.51,139.49,3.5871]
[1728607630591,11.02,139.51,139.5,3.5869]
[1728607632793,3.5859,139.54,139.51,3.5866]
[1728607633099,11.14502,139.55,139.51,2.15007]
[1728607633498,11.14502,139.55,139.53,3.586]
[1728607634995,11.14502,139.55,139.53,5.73607]
[1728607636607,11.14502,139.55,139.54,3.5858]
[1728607637294,11.14502,139.55,139.54,5.73587]
[1728607639707,11.14502,139.55,139.54,2.15007]
[1728607639911,11.14502,139.55,139.48,1.3877]
[1728607640099,11.02,139.49,139.44,6.4282]
[1728607640298,11.02,139.46,139.44,6.4282]
[1728607640600,11.02,139.46,139.45,3.5882]
[1728607641015,11.02,139.46,139.45,5.73873]
[1728607642104,11.02,139.47,139.45,2.15053]
[1728607642305,11.02,139.47,139.46,3.5879]
[1728607642515,11.02,139.47,139.46,5.73843]
[1728607650913,14.6076,139.47,139.46,2.15053]
[1728607651217,2.6592,139.51,139.46,2.15053]
[1728607651413,11.02,139.47,139.46,2.15053]
[1728607651612,11.02,139.47,139.46,5.73823]
[1728607651813,11.02,139.47,139.46,2.15053]
[1728607653712,14.6076,139.47,139.46,2.15053]
[1728607654215,11.02,139.47,139.43,0.12502]
[1728607654407,11.02,139.44,139.43,0.12502]
[1728607654610,11.02,139.44,139.43,2.27602]
[1728607654807,11.02,139.44,139.43,0.12502]
[1728607655016,14.6084,139.44,139.43,0.12502]
[1728607656616,11.02,139.44,139.43,0.12502]
[1728607656909,11.02,139.44,139.43,2.27602]
[1728607657117,11.02,139.45,139.43,5.86442]
[1728607657611,11.02,139.46,139.45,3.5879]
[1728607657813,11.02,139.46,139.43,2.27602]
[1728607657814,11.02,139.47,139.43,13.29602]
[1728607658403,11.02,139.47,139.46,3.5879]
[1728607658610,11.02,139.47,139.46,5.7389]
[1728607658916,11.02,139.48,139.46,2.151]
[1728607659415,11.02,139.48,139.47,3.5875]
[1728607659606,11.02,139.5,139.46,11.02]
[1728607659810,11.02,139.5,139.46,13.171]
[1728607660211,11.02,139.5,139.48,3.5872]
[1728607660413,11.02,139.51,139.46,13.171]
[1728607660718,11.02,139.5,139.48,3.5873]
[1728607661314,11.02,139.5,139.48,5.7383]
[1728607662122,11.02,139.52,139.49,3.587]
[1728607662308,11.02,139.52,139.49,5.738]
[1728607664410,11.02,139.54,139.49,13.171]
[1728607664614,11.14502,139.55,139.5,16.1]
[1728607664918,11.02,139.54,139.51,3.5865]
[1728607665520,11.02,139.54,139.51,5.7375]
[1728607665924,11.02,139.54,139.51,2.151]
[1728607666120,11.02,139.54,139.52,3.5863]
[1728607666723,11.02,139.54,139.52,5.7373]
[1728607667122,11.02,139.54,139.52,2.151]
[1728607668021,11.02,139.53,139.52,2.151]
[1728607668737,14.6061,139.53,139.52,2.151]
[1728607679735,11.02,139.53,139.52,2.151]
[1728607679932,11.02,139.54,139.52,5.7374]
[1728607680141,11.02,139.54,139.52,2.151]
[1728607680535,11.02,139.54,139.53,3.5859]
[1728607680741,0.12502,139.55,139.53,2.151]
[1728607681239,0.12502,139.55,139.54,3.5858]
[1728607681739,11.14502,139.55,139.53,2.151]
[1728607681936,11.02,139.54,139.53,5.737]
[1728607683840,0.12502,139.55,139.54,3.5858]
[1728607684538,0.12502,139.55,139.54,5.7368]
[1728607685441,11.14502,139.55,139.54,5.7368]
[1728607686650,11.14502,139.55,139.54,2.151]
[1728607687347,11.14502,139.55,139.54,5.7368]
[1728607688246,11.14502,139.55,139.54,2.151]
[1728607688848,11.14502,139.55,139.5,6.4542]
[1728607689155,11.02,139.52,139.5,12.19097]
[1728607689446,14.6066,139.51,139.5,2.15007]
[1728607689853,11.02,139.51,139.5,2.15007]
[1728607690444,0.12502,139.55,139.5,13.17007]
[1728607690754,11.14502,139.55,139.5,13.17007]
[1728607690951,11.02,139.53,139.5,13.17007]
[1728607691149,11.02,139.53,139.52,3.5864]
[1728607691353,11.02,139.53,139.52,5.73647]
[1728607691654,0.12502,139.55,139.54,3.5858]
[1728607691838,0.12502,139.55,139.54,5.73587]
[1728607697953,11.02,139.58,139.56,3.5852]
[1728607698450,14.6049,139.58,139.56,2.15007]
[1728607698650,11.02,139.57,139.56,2.15007]
[1728607700153,11.02,139.57,139.56,5.73537]
[1728607701945,3.5844,139.6,139.57,3.5849]
[1728607702150,14.6044,139.6,139.56,2.15007]
[1728607702647,14.6044,139.6,139.57,3.585]
[1728607703252,3.70922,139.61,139.58,3.5846]
[1728607703456,0.12502,139.61,139.59,11.02]
[1728607703751,2.7624,139.66,139.6,16.1]
[1728607703752,11.02,139.65,139.6,16.1]
[1728607703957,5.08,139.68,139.62,11.02]
[1728607704156,11.14502,139.67,139.62,11.02]
[1728607704458,11.14502,139.67,139.62,13.17007]
[1728607704655,14.72762,139.67,139.64,3.5831]
[1728607704854,11.14502,139.67,139.64,3.5831]
[1728607705154,0.12502,139.67,139.64,5.73317]
[1728607706449,3.70752,139.67,139.64,5.73317]
[1728607706861,0.12502,139.67,139.64,5.73317]
[1728607707358,0.12502,139.67,139.64,2.15007]
[1728607707558,0.12502,139.67,139.65,3.583]
[1728607707769,0.12502,139.67,139.65,2.15007]
[1728607708069,0.12502,139.67,139.66,3.5828]
[1728607708256,0.12502,139.67,139.66,5.73287]
[1728607709059,0.12502,139.67,139.66,2.15007]
[1728607711263,3.70752,139.67,139.66,2.15007]
[1728607711563,0.12502,139.67,139.66,2.15007]
[1728607715156,3.70752,139.67,139.66,2.15007]
[1728607715661,20.89752,139.67,139.66,2.15007]
[1728607722565,20.90701971,139.67,139.61,8.664]
[1728607722768,17.19,139.66,139.61,10.81407]
[1728607722969,17.19,139.66,139.61,5.73407]
[1728607723277,3.5831,139.65,139.62,3.5838]
[1728607723770,3.5831,139.65,139.62,5.73387]
[1728607724177,3.5833,139.64,139.62,5.73387]
[1728607726681,3.5833,139.64,139.62,2.15007]
[1728607729278,14.5931,139.65,139.62,5.73387]
[1728607731381,14.5929,139.66,139.63,3.5835]
[1728607731583,14.5929,139.66,139.63,5.73357]
[1728607731881,11.01,139.66,139.63,5.73357]
[1728607732471,14.5929,139.66,139.63,5.73357]
[1728607733881,3.583,139.65,139.63,5.73357]
[1728607734874,3.5829,139.66,139.63,2.15007]
[1728607735073,3.5829,139.66,139.64,3.5833]
[1728607735681,3.5829,139.66,139.64,5.73337]
[1728607735876,11.13502,139.67,139.64,5.73337]
[1728607736185,3.70772,139.67,139.64,5.73337]
[1728607736578,0.12502,139.67,139.65,3.583]
[1728607736979,0.12502,139.67,139.65,5.73307]
[1728607738379,3.70752,139.67,139.65,2.15007]
[1728607739987,11.13502,139.67,139.65,2.15007]
[1728607740288,3.5828,139.66,139.65,2.15007]
[1728607743591,14.5928,139.66,139.65,2.15007]
[1728607744981,3.5833,139.64,139.63,2.15007]
[1728607745181,14.5933,139.64,139.63,2.15007]
[1728607747389,3.5833,139.64,139.63,2.15007]
[1728607749093,14.5933,139.64,139.63,2.15007]
[1728607749285,1.43383,139.62,139.6,5.08]
[1728607749593,11.01,139.61,139.6,5.08]
[1728607749891,14.594,139.61,139.6,2.14884]
[1728607754001,3.5843,139.6,139.59,2.14884]
[1728607754192,11.01,139.6,139.59,2.14884]
[1728607754689,14.5943,139.6,139.59,2.14884]
[1728607759511,14.55719325,139.6,139.55,0.12502]
[1728607759706,11.01,139.57,139.55,0.12502]
[1728607760200,11.01,139.57,139.55,2.27463]
[1728607760400,14.5953,139.57,139.55,2.27463]
[1728607760610,11.01,139.57,139.55,2.27463]
[1728607761005,3.5853,139.56,139.55,2.27463]
[1728607761705,14.5952,139.57,139.55,2.27463]
[1728607762419,11.01,139.57,139.55,2.27463]
[1728607762715,3.5853,139.56,139.55,2.27463]
[1728607766707,14.5953,139.56,139.55,2.27463]
[1728607769814,14.5953,139.56,139.55,0.12502]
[1728607773217,14.5953,139.56,139.55,2.27463]
[1728607776727,11.01,139.57,139.55,2.27463]
[1728607778528,14.5951,139.57,139.55,5.86013]
[1728607779328,14.5953,139.56,139.55,2.27463]
[1728607782620,7.8179,139.6,139.55,2.27463]
[1728607782827,11.01,139.57,139.55,2.27463]
[1728607783834,11.01,139.57,139.55,5.86013]
[1728607786326,11.01,139.57,139.55,2.27463]
[1728607786525,11.01,139.58,139.56,3.5853]
[1728607786731,11.01,139.58,139.56,5.73491]
[1728607787227,11.01,139.57,139.56,2.14961]
[1728607787529,11.01,139.57,139.5,5.08]
[1728607787729,11.01,139.53,139.5,5.08]
[1728607788027,11.01,139.53,139.5,7.23007]
[1728607789432,14.5963,139.53,139.51,3.5866]
[1728607789618,11.01,139.53,139.51,3.5866]
[1728607789819,11.01,139.53,139.51,5.73667]
[1728607790730,11.01,139.54,139.52,3.5862]
[1728607791328,11.01,139.54,139.52,5.73627]
[1728607796036,11.01,139.54,139.52,2.15007]
[1728607796237,14.596,139.54,139.52,2.15007]
[1728607796637,11.01,139.53,139.52,2.15007]
[1728607797235,14.5961,139.53,139.52,2.15007]
[1728607800242,3.5858,139.55,139.52,5.73647]
[1728607800443,11.01,139.54,139.52,2.15007]
[1728607800646,14.596,139.54,139.52,2.15007]
[1728607801845,3.5855,139.56,139.52,5.73617]
[1728607802048,11.01,139.55,139.52,2.15007]
[1728607803445,14.5956,139.55,139.53,3.5861]
[1728607804043,14.5956,139.55,139.53,2.15007]
[1728607805745,11.01,139.55,139.53,5.73607]
[1728607808057,3.5849,139.58,139.55,3.5855]
[1728607808361,14.5949,139.58,139.55,3.5855]
[1728607808855,14.5949,139.58,139.55,5.73557]
[1728607809152,3.5849,139.58,139.55,2.15007]
[1728607809357,0.12502,139.61,139.55,13.16007]
[1728607809549,11.01,139.6,139.56,16.09]
[1728607810157,11.01,139.6,139.56,18.24007]
[1728607810357,11.01,139.6,139.58,3.5847]
[1728607810658,11.01,139.6,139.58,5.73477]
[1728607813349,11.01,139.59,139.58,2.15007]
[1728607814455,14.5946,139.59,139.58,2.15007]
[1728607825166,11.01,139.59,139.58,2.15007]
[1728607825360,11.13502,139.61,139.58,2.15007]
[1728607826259,11.01,139.6,139.58,5.73477]
[1728607826459,11.01,139.59,139.58,2.15007]
[1728607828366,0.12502,139.67,139.65,3.583]
[1728607828570,0.12502,139.67,139.63,5.08]
[1728607828759,0.12502,139.67,139.63,16.09]
[1728607828961,0.12502,139.67,139.64,11.01]
[1728607829277,0.12502,139.67,139.65,11.01]
[1728607829568,0.12502,139.67,139.66,8.6628]
[1728607829764,0.12502,139.67,139.66,5.08]
[1728607829969,0.12502,139.67,139.66,7.23007]
[1728607830968,0.12502,139.67,139.66,10.81287]
[1728607832867,0.12502,139.67,139.66,7.23007]
[1728607836170,14.71752,139.67,139.66,7.23007]
[1728607837478,3.70752,139.67,139.66,7.23007]
[1728607837669,3.70752,139.67,139.66,2.15007]
[1728607840176,0.12502,139.67,139.66,2.15007]
[1728607841368,0.12502,139.67,139.66,5.73287]
[1728607842781,14.71752,139.67,139.66,2.15007]
[1728607842979,18.32425501,139.67,139.66,2.15007]
[1728607843579,14.74175501,139.67,139.65,2.15007]
[1728607843776,14.5928,139.66,139.65,2.15007]
[1728607845981,3.5828,139.66,139.65,2.15007]
[1728607846582,11.01,139.66,139.55,77.54502]
[1728607846781,11.01,139.6,139.58,2.15007]
[1728607847579,11.01,139.6,139.58,5.73467]
[1728607847789,3.5841,139.61,139.58,5.73467]
[1728607850486,11.01,139.62,139.58,2.15007]
[1728607850786,14.5946,139.59,139.58,2.15007]
[1728607852175,11.01,139.59,139.58,2.15007]
[1728607852481,13.8279,139.63,139.58,13.16007]
[1728607853286,3.5839,139.62,139.59,3.5844]
[1728607853885,3.5839,139.62,139.59,5.73447]
[1728607856893,5.08,139.64,139.59,2.15007]
[1728607857190,3.5835,139.63,139.6,3.5841]
[1728607858391,3.5838,139.62,139.6,3.5841]
[1728607858584,3.5838,139.62,139.6,5.73437]
[1728607859084,3.584,139.61,139.6,2.15007]
[1728607860093,3.5839,139.62,139.6,2.15007]
[1728607861290,17.21,139.65,139.6,2.15007]
[1728607861491,3.584,139.61,139.6,2.15007]
[1728607866001,17.21,139.63,139.6,2.15007]
[1728607866191,3.5839,139.62,139.6,2.15007]
[1728607867001,17.21,139.63,139.6,2.15007]
[1728607867298,3.584,139.61,139.6,2.15007]
[1728607868499,20.794,139.61,139.6,2.15007]
[1728607868694,5.08,139.63,139.6,2.15007]
[1728607868896,22.29,139.65,139.6,5.73437]
[1728607869200,3.5838,139.62,139.6,5.73437]
[1728607870701,3.5838,139.62,139.6,2.15007]
[1728607871201,3.584,139.61,139.6,2.15007]
[1728607875302,14.594,139.62,139.6,2.15007]
[1728607876804,5.08,139.66,139.6,13.16007]
[1728607877002,11.01,139.65,139.6,13.16007]
[1728607877409,3.5833,139.64,139.61,3.5839]
[1728607878210,3.5833,139.64,139.61,5.73397]
[1728607878610,3.5838,139.62,139.61,2.15007]
[1728607881819,11.01,139.64,139.61,5.73407]
[1728607883522,3.5835,139.63,139.61,5.73407]
[1728607884114,3.5834,139.64,139.61,5.73407]
[1728607884318,14.5934,139.64,139.61,5.73407]
[1728607885125,3.5834,139.64,139.62,3.5837]
[1728607885623,11.01,139.64,139.61,7.23007]
[1728607885824,3.5835,139.63,139.61,10.81397]
[1728607886713,14.5934,139.64,139.61,10.81397]
[1728607890424,14.5938,139.62,139.61,2.15007]
[1728607893830,3.5838,139.62,139.61,2.15007]
[1728607894231,14.5936,139.63,139.61,2.15007]
[1728607895028,11.01,139.64,139.61,2.15007]
[1728607895236,14.5935,139.64,139.61,5.73397]
[1728607895737,11.01,139.64,139.61,5.73397]
[1728607896440,3.5836,139.63,139.61,5.73397]
[1728607896632,11.01,139.64,139.61,5.73397]
[1728607897340,14.5934,139.64,139.61,5.73397]
[1728607898544,3.5835,139.63,139.61,5.73397]
[1728607901238,3.5829,139.66,139.63,3.5834]
[1728607901637,3.70762,139.67,139.65,3.583]
[1728607901844,3.70762,139.67,139.63,5.08]
[1728607902444,3.70762,139.67,139.64,3.5832]
[1728607902642,3.70762,139.67,139.64,13.16007]
[1728607902643,0.12502,139.67,139.64,13.16007]
[1728607902849,0.12502,139.67,139.65,11.01]
[1728607903146,0.12502,139.67,139.65,13.16007]
[1728607904042,0.12502,139.67,139.66,14.5928]
[1728607904249,3.5818,139.7,139.66,11.01]
[1728607904446,3.5818,139.7,139.66,18.24007]
[1728607904643,3.5818,139.7,139.67,3.5823]
[1728607905147,3.5818,139.7,139.67,5.73237]
[1728607906540,3.582,139.69,139.67,2.15007]
[1728607907146,14.5922,139.68,139.67,2.15007]
[1728607912355,3.5822,139.68,139.67,2.15007]
[1728607914555,14.5922,139.68,139.67,2.15007]
[1728607914745,3.5825,139.67,139.66,2.15007]
[1728607914946,11.01,139.67,139.63,3.5834]
[1728607915146,5.08,139.7,139.63,13.16007]
[1728607915345,14.5922,139.69,139.66,3.5826]
[1728607915747,14.5922,139.69,139.66,5.73267]
[1728607916453,3.5823,139.68,139.66,5.73267]
[1728607917955,3.70602,139.73,139.7,3.5816]
[1728607918150,11.01,139.72,139.7,2.15007]
[1728607918461,11.01,139.71,139.7,2.15007]
[1728607919148,14.5915,139.71,139.7,2.15007]
[1728607919346,14.5915,139.71,139.68,2.15007]
[1728607919347,11.01,139.71,139.68,2.15007]
[1728607919549,11.01,139.69,139.68,2.15007]
[1728607919750,14.592,139.69,139.68,2.15007]
[1728607922260,11.01,139.69,139.63,8.6433]
[1728607922459,5.06,139.72,139.63,8.6433]
[1728607922460,11.01,139.66,139.63,8.6433]
[1728607922653,11.01,139.66,139.63,7.20815]
[1728607922966,11.01,139.66,139.63,5.41802]
[1728607923151,3.5826,139.67,139.64,3.5831]
[1728607923351,11.01,139.65,139.63,0.35802]
[1728607923654,14.5933,139.64,139.63,0.35802]
[1728607924661,3.22578,139.62,139.57,5.06]
[1728607924856,3.22578,139.62,139.6,2.14899]
[1728607924857,14.23578,139.62,139.6,2.14899]
[1728607925052,14.23578,139.62,139.59,2.14899]
[1728607935170,14.23578,139.62,139.58,3.5846]
[1728607935362,14.23578,139.62,139.61,2.27401]
[1728607935560,8.6437,139.63,139.61,2.27401]
[1728607935781,11.01,139.63,139.61,2.27401]
[1728607936269,11.01,139.63,139.61,5.85791]
[1728607936863,11.01,139.64,139.62,3.5838]
[1728607938073,14.5934,139.64,139.62,2.14899]
[1728607939168,11.01,139.63,139.62,2.14899]
[1728607939363,14.5935,139.63,139.62,2.14899]
[1728607955487,3.5838,139.62,139.61,2.27401]
[1728607955685,14.5938,139.62,139.61,2.27401]
[1728607961492,11.01,139.62,139.61,2.27401]
[1728607963399,11.01,139.63,139.61,2.27401]
[1728607963895,11.01,139.63,139.61,5.85791]
[1728607968798,3.5834,139.64,139.61,5.85791]
[1728607968998,11.01,139.63,139.61,5.85791]
[1728607970597,3.5675804,139.66,139.61,2.27401]
[1728607970793,11.01,139.65,139.61,2.27401]
[1728607971493,14.5932,139.65,139.62,3.5837]
[1728607971888,14.5932,139.65,139.62,5.73269]
[1728607972492,11.01,139.64,139.62,5.73269]
[1728607975703,11.01,139.63,139.62,2.14899]
[1728607977002,14.5935,139.63,139.62,2.14899]
[1728607977201,11.01,139.63,139.61,2.27401]
[1728607977401,11.01,139.62,139.61,2.27401]
[1728607977704,14.5938,139.62,139.61,2.27401]
[1728607984700,5.06,139.66,139.61,2.27401]
[1728607985009,14.5932,139.65,139.62,3.5837]
[1728607985403,14.5932,139.65,139.62,5.73269]
[1728607985603,3.6528949,139.66,139.62,2.14899]
[1728607985908,11.01,139.66,139.62,2.14899]
[1728607987512,14.5931,139.65,139.62,5.73269]
[1728607990513,11.01,139.63,139.62,2.14899]
[1728607991408,14.5935,139.63,139.62,2.14899]
[1728607993917,11.01,139.63,139.62,2.14899]
[1728607994214,14.5934,139.64,139.62,2.14899]
[1728607994413,14.5934,139.64,139.62,5.73269]
[1728607995317,11.01,139.64,139.62,5.73269]
[1728607996416,3.5831,139.65,139.62,5.73269]
[1728607998321,3.5831,139.65,139.63,3.5835]
[1728607998825,3.5829,139.66,139.62,13.15899]
[1728607999313,11.01,139.67,139.62,18.21899]
[1728607999520,3.5826,139.67,139.62,18.21899]
[1728607999714,14.5926,139.67,139.62,18.21899]
[1728608000316,3.5826,139.67,139.62,18.21899]
[1728608000517,11.01,139.66,139.62,7.20899]
[1728608000825,61.81569296,139.7,139.62,10.79269]
[1728608000826,11.01,139.65,139.62,10.79269]
[1728608001121,14.5931,139.65,139.62,10.79269]
[1728608003826,14.5931,139.65,139.63,3.5835]
[1728608004629,14.5931,139.65,139.63,5.73249]
[1728608005019,3.60275098,139.67,139.63,5.73249]
[1728608005322,14.5929,139.66,139.63,5.73249]
[1728608005522,11.01,139.66,139.63,5.73249]
[1728608005824,3.583,139.65,139.63,5.73249]
[1728608006226,3.583,139.65,139.63,2.14899]
[1728608008524,3.583,139.65,139.63,5.73249]
[1728608011334,11.01,139.66,139.63,2.14899]
[1728608011630,3.5833,139.64,139.63,2.14899]
[1728608013132,14.5931,139.65,139.63,2.14899]
[1728608013432,3.5831,139.65,139.63,2.14899]
[1728608014136,3.5831,139.65,139.63,5.73249]
[1728608022039,11.01,139.66,139.63,2.14899]
[1728608022233,3.5833,139.64,139.63,2.14899]
[1728608026344,18.1705063,139.65,139.63,2.14899]
[1728608034247,14.5933,139.64,139.63,2.14899]
[1728608034439,16.07,139.64,139.62,2.14899]
[1728608034642,11.01,139.63,139.61,0.12502]
[1728608034838,11.01,139.62,139.55,0.12502]
[1728608035039,11.01,139.57,139.55,2.27432]
[1728608035546,5.06,139.61,139.55,13.28432]
[1728608035547,11.01,139.59,139.55,13.28432]
[1728608037445,11.01,139.62,139.57,11.01]
[1728608037846,3.5839,139.62,139.59,3.5846]
[1728608038147,14.5939,139.62,139.59,3.5846]
[1728608038338,14.5939,139.62,139.59,5.7339]
[1728608038745,11.01,139.63,139.59,2.1493]
[1728608038942,11.01,139.63,139.59,13.1593]
[1728608039249,14.5936,139.63,139.6,3.5842]
[1728608039449,14.5936,139.63,139.6,5.7335]
[1728608040851,14.5936,139.63,139.61,3.584]
[1728608041050,14.5936,139.63,139.61,5.7333]
[1728608041250,3.5834,139.64,139.61,2.1493]
[1728608041451,14.52180669,139.65,139.62,3.5837]
[1728608042048,14.52180669,139.65,139.61,11.01]
[1728608042352,14.52180669,139.65,139.61,13.1593]
[1728608042547,18.10490669,139.65,139.61,13.1593]
[1728608042954,18.10490669,139.65,139.62,3.5837]
[1728608043160,11.01,139.63,139.58,5.06]
[1728608043451,11.01,139.63,139.58,7.2093]
[1728608043657,14.5936,139.63,139.6,3.5842]
[1728608043859,14.5936,139.63,139.6,5.7335]
[1728608044048,3.51180669,139.65,139.6,2.1493]
[1728608044049,11.01,139.62,139.6,2.1493]
[1728608044250,1.3646,139.69,139.6,2.1493]
[1728608044251,11.01,139.61,139.6,2.1493]
[1728608044451,11.01,139.61,139.55,0.12502]
[1728608044653,11.01,139.56,139.55,0.12502]
[1728608044854,14.5953,139.56,139.55,2.27447]
[1728608046159,11.01,139.56,139.55,2.27447]
[1728608046353,5.06,139.57,139.55,2.27447]
[1728608046354,11.01,139.57,139.55,2.27447]
[1728608046558,17.50141039,139.68,139.55,2.27447]
[1728608046559,11.01,139.58,139.55,2.27447]
[1728608047764,11.01,139.57,139.55,2.27447]
[1728608048067,11.01,139.56,139.55,2.27447]
[1728608048370,14.5953,139.56,139.55,2.27447]
[1728608052276,11.01,139.56,139.55,2.27447]
[1728608052577,11.01,139.57,139.55,5.85997]
[1728608054176,14.5951,139.57,139.55,5.85997]
[1728608054478,11.01,139.56,139.55,2.27447]
[1728608057268,14.5951,139.57,139.55,2.27447]
[1728608059580,11.01,139.56,139.55,2.27447]
[1728608062678,11.01,139.56,139.55,5.86007]
[1728608063074,11.01,139.58,139.55,2.27447]
[1728608063381,11.01,139.58,139.56,3.5852]
[1728608063582,14.5948,139.58,139.55,2.27447]
[1728608064075,14.5948,139.58,139.55,5.85987]
[1728608066076,3.61525467,139.6,139.55,2.27447]
[1728608066276,8.6445,139.6,139.57,3.585]
[1728608066469,11.01,139.58,139.57,3.585]
[1728608066875,11.01,139.58,139.57,2.14945]
[1728608073479,11.01,139.58,139.57,5.73455]
[1728608075481,3.49806706,139.61,139.57,2.14945]
[1728608075687,11.01,139.59,139.57,2.14945]
[1728608076585,11.01,139.59,139.58,3.5848]
[1728608076882,11.01,139.59,139.58,5.73425]
[1728608078180,11.01,139.59,139.58,2.14945]
[1728608079390,14.5946,139.59,139.58,2.14945]
[1728608083288,11.01,139.59,139.58,2.14945]
[1728608104604,11.01,139.59,139.58,5.73425]
[1728608108105,1.3778,139.64,139.58,2.14945]
[1728608108307,11.01,139.62,139.58,2.14945]
[1728608108604,11.01,139.62,139.58,7.20945]
[1728608108799,11.01,139.62,139.59,3.5845]
[1728608109107,11.01,139.62,139.59,5.73395]
[1728608109510,14.5938,139.62,139.59,5.73395]
[1728608109711,11.01,139.61,139.59,5.73395]
[1728608109909,11.01,139.6,139.59,2.14945]
[1728608113411,5.06,139.64,139.59,2.14945]
[1728608113706,11.01,139.63,139.59,2.14945]
[1728608114109,11.01,139.62,139.6,3.5842]
[1728608114811,11.01,139.62,139.6,5.73365]
[1728608115308,11.01,139.62,139.6,2.14945]
[1728608115510,14.594,139.61,139.6,2.14945]
[1728608116110,11.01,139.61,139.59,2.14945]